fUSD/lending_fUSD_20250207
["ID","MTS","AMOUNT","RATE_DAILY","PERIOD"]
[352120443,1738954268808,-570.32,0.00016712,2]
[352120444,1738954268817,-500.0,0.00016712,2]
[352120445,1738954268828,-506.57518671,0.00016712,2]
[352120446,1738954268837,-500.0,0.00016712,2]
[352120447,1738954268846,-1572.84,0.00016712,2]
[352120448,1738954268856,-732.47,0.00016712,2]
[352120449,1738954268865,-1128.25,0.00016712,2]
[352120450,1738954268875,-500.0,0.00016712,2]
[352120451,1738954268883,-500.0,0.00016712,2]
[352120452,1738954268892,-500.0,0.00016712,2]
[352120453,1738954268901,-500.0,0.00016712,2]
[352120454,1738954268910,-500.0,0.00016712,2]
[352120455,1738954268919,-1513.11,0.00016712,2]
[352120456,1738954268928,-500.0,0.00016712,2]
[352120457,1738954268938,-500.0,0.00016712,2]
[352120458,1738954268947,-500.0,0.00016712,2]
[352120459,1738954268956,-500.0,0.00016712,2]
[352120460,1738954268965,-1382.01,0.00016712,2]
[352120461,1738954268974,-500.0,0.00016712,2]
[352120462,1738954268983,-1947.1,0.00016712,2]
[352120463,1738954268992,-500.0,0.00016712,2]
[352120464,1738954269001,-500.0,0.00016712,2]
[352120465,1738954269010,-500.0,0.00016712,2]
[352120466,1738954269019,-500.0,0.00016712,2]
[352120467,1738954269029,-500.0,0.00016712,2]
[352120468,1738954269038,-727.49,0.00016712,2]
[352120469,1738954269047,-500.0,0.00016712,2]
[352120470,1738954269055,-641.94,0.00016712,2]
[352120471,1738954269064,-500.0,0.00016712,2]
[352120472,1738954269074,-500.0,0.00016712,2]
[352120473,1738954269083,-552.71,0.00016712,2]
[352120474,1738954269092,-500.0,0.00016712,2]
[352120475,1738954269101,-500.0,0.00016712,2]
[352120476,1738954269110,-945.87,0.00016712,2]
[352120477,1738954269120,-500.0,0.00016712,2]
[352120478,1738954269129,-500.0,0.00016712,2]
[352120479,1738954269138,-500.0,0.00016712,2]
[352120480,1738954269147,-500.0,0.00016712,2]
[352120481,1738954269156,-500.0,0.00016712,2]
[352120482,1738954269165,-1255.53,0.00016712,2]
[352120483,1738954269173,-500.0,0.00016712,2]
[352120484,1738954269182,-500.0,0.00016712,2]
[352120485,1738954269191,-500.0,0.00016712,2]
[352120486,1738954269200,-500.0,0.00016712,2]
[352120487,1738954269209,-500.0,0.00016712,2]
[352120488,1738954269218,-500.0,0.00016712,2]
[352120489,1738954269227,-500.0,0.00016712,2]
[352120490,1738954269236,-500.0,0.00016712,2]
[352120491,1738954269245,-500.0,0.00016712,2]
[352120492,1738954269254,-500.0,0.00016712,2]
[352120493,1738954269264,-794.56,0.00016712,2]
[352120494,1738954269273,-500.0,0.00016712,2]
[352120495,1738954269282,-500.0,0.00016712,2]
[352120496,1738954269291,-1484.61,0.00016712,2]
[352120497,1738954269299,-500.0,0.00016712,2]
[352120498,1738954269308,-1249.35,0.00016712,2]
[352120499,1738954269317,-500.0,0.00016712,2]
[352120500,1738954269329,-500.0,0.00016712,2]
[352120501,1738954269338,-500.0,0.00016712,2]
[352120502,1738954269346,-500.0,0.00016712,2]
[352120503,1738954269356,-518.46,0.00016712,2]
[352120504,1738954269365,-754.58,0.00016712,2]
[352120505,1738954269374,-500.0,0.00016712,2]
[352120506,1738954269383,-612.41,0.00016712,2]
[352120507,1738954269392,-500.0,0.00016712,2]
[352120508,1738954269400,-500.0,0.00016712,2]
[352120509,1738954269410,-501.29654235,0.00016712,2]
[352120510,1738954269419,-500.0,0.00016712,2]
[352120511,1738954269428,-539.05,0.00016712,2]
[352120512,1738954269436,-500.0,0.00016712,2]
[352120513,1738954269445,-436.76725018,0.00016712,2]
[352120514,1738954269454,-500.0,0.00016712,2]
[352120515,1738954269463,-1681.33,0.00016712,2]
[352120516,1738954269472,-500.0,0.00016712,2]
[352120517,1738954269481,-500.0,0.00016712,2]
[352120518,1738954269490,-500.0,0.00016712,2]
[352120519,1738954269499,-500.0,0.00016712,2]
[352120520,1738954269508,-241.4980508,0.00016712,2]
[352120521,1738954269517,-500.0,0.00016712,2]
[352120522,1738954269526,-500.0,0.00016712,2]
[352120523,1738954269535,-500.0,0.00016712,2]
[352120524,1738954269544,-500.0,0.00016712,2]
[352120525,1738954269553,-1359.38,0.00016712,2]
[352120526,1738954269562,-500.0,0.00016712,2]
[352120527,1738954269574,-500.0,0.00016712,2]
[352120528,1738954269583,-500.0,0.00016712,2]
[352120529,1738954269592,-500.0,0.00016712,2]
[352120530,1738954269601,-585.24,0.00016712,2]
[352120531,1738954269610,-513.1309948,0.00016712,2]
[352120532,1738954269619,-500.0,0.00016712,7]
[352120533,1738954269628,-500.0,0.00016712,2]
[352120534,1738954269637,-500.0,0.00016712,2]
[352120535,1738954269646,-500.0,0.00016712,2]
[352120536,1738954269655,-500.0,0.00016712,2]
[352120537,1738954269664,-500.0,0.00016712,2]
[352120538,1738954269673,-500.0,0.00016712,2]
[352120539,1738954269682,-758.91,0.00016712,2]
[352120540,1738954269691,-500.0,0.00016712,2]
[352120541,1738954269699,-597.24,0.00016712,2]
[352120542,1738954269708,-776.07,0.00016712,2]
[352120543,1738954269717,-552.49,0.00016712,2]
[352120544,1738954269726,-500.0,0.00016712,2]
[352120545,1738954269735,-1921.96,0.00016712,2]
[352120546,1738954269744,-500.0,0.00016712,2]
[352120547,1738954269753,-1318.9,0.00016712,2]
[352120548,1738954269765,-1410.92,0.00016712,2]
[352120549,1738954269774,-1203.46,0.00016712,2]
[352120550,1738954269783,-500.0,0.00016712,2]
[352120551,1738954269792,-500.0,0.00016712,2]
[352120552,1738954269801,-605.99,0.00016712,2]
[352120553,1738954269812,-500.0,0.00016712,2]
[352120554,1738954269822,-500.0,0.00016712,2]
[352120555,1738954269831,-500.0,0.00016712,2]
[352120556,1738954269840,-1683.01,0.00016712,2]
[352120557,1738954269851,-500.0,0.00016712,2]
[352120558,1738954269859,-606.77,0.00016712,2]
[352120559,1738954269868,-500.0,0.00016712,2]
[352120560,1738954269877,-786.81,0.00016712,2]
[352120561,1738954269886,-500.0,0.00016712,2]
[352120562,1738954269895,-1449.95,0.00016712,2]
[352120563,1738954269903,-500.0,0.00016712,2]
[352120564,1738954269913,-500.0,0.00016712,2]
[352120565,1738954269923,-573.14,0.00016712,2]
[352120566,1738954269933,-705.29,0.00016712,2]
[352120567,1738954269942,-1501.3,0.00016712,2]
[352120568,1738954269951,-500.0,0.00016712,2]
[352120569,1738954269960,-909.93,0.00016712,2]
[352120570,1738954269969,-1146.23,0.00016712,2]
[352120571,1738954269979,-500.0,0.00016712,2]
[352120572,1738954269988,-500.0,0.00016712,2]
[352120573,1738954269997,-500.0,0.00016712,2]
[352120574,1738954270006,-500.0,0.00016712,2]
[352120575,1738954270015,-500.0,0.00016712,2]
[352120576,1738954270024,-500.0,0.00016712,2]
[352120577,1738954270033,-500.0,0.00016712,2]
[352120578,1738954270042,-500.0,0.00016712,2]
[352120579,1738954270051,-197.83684603,0.00016712,2]
[352120580,1738954270061,-669.87,0.00016712,2]
[352120581,1738954270070,-1699.98,0.00016712,2]
[352120582,1738954270080,-500.0,0.00016712,2]
[352120583,1738954270089,-712.52,0.00016712,2]
[352120584,1738954270099,-1207.75,0.00016712,2]
[352120585,1738954270108,-500.0,0.00016712,2]
[352120586,1738954270117,-500.0,0.00016712,2]
[352120587,1738954270126,-500.0,0.00016712,2]
[352120588,1738954270140,-500.0,0.00016712,2]
[352120589,1738954270149,-1298.36,0.00016712,2]
[352120590,1738954270159,-500.0,0.00016712,2]
[352120591,1738954270168,-512.69,0.00016712,2]
[352120592,1738954270177,-520.08,0.00016712,2]
[352120593,1738954270187,-500.0,0.00016712,2]
[352120594,1738954270196,-596.73,0.00016712,2]
[352120595,1738954270206,-500.0,0.00016712,2]
[352120596,1738954270215,-500.0,0.00016712,2]
[352120597,1738954270224,-500.0,0.00016712,2]
[352120598,1738954270233,-1918.83,0.00016712,2]
[352120599,1738954270242,-500.0,0.00016712,2]
[352120600,1738954270252,-500.0,0.00016712,2]
[352120601,1738954270261,-500.0,0.00016712,2]
[352120602,1738954270270,-500.0,0.00016712,2]
[352120603,1738954270279,-500.0,0.00016712,2]
[352120604,1738954270288,-500.0,0.00016712,2]
[352120605,1738954270297,-500.0,0.00016712,2]
[352120606,1738954270306,-500.0,0.00016712,2]
[352120607,1738954270314,-500.0,0.00016712,2]
[352120608,1738954270324,-319.06363553,0.00016712,2]
[352120609,1738954270333,-500.0,0.00016712,2]
[352120610,1738954270342,-896.73,0.00016712,2]
[352120611,1738954270351,-537.6,0.00016712,2]
[352120612,1738954270512,-500.0,0.00016712,2]
[352120613,1738954270521,-1180.65,0.00016712,2]
[352120614,1738954270530,-500.0,0.00016712,2]
[352120615,1738954270539,-1627.5,0.00016712,2]
[352120616,1738954270548,-500.0,0.00016712,2]
[352120617,1738954270557,-500.0,0.00016712,2]
[352120618,1738954270566,-500.0,0.00016712,2]
[352120619,1738954270576,-500.0,0.00016712,2]
[352120620,1738954270584,-500.0,0.00016712,2]
[352120621,1738954270593,-500.0,0.00016712,2]
[352120622,1738954270602,-500.0,0.00016712,2]
[352120623,1738954270611,-389.44453693,0.00016712,2]
[352120624,1738954270620,-500.0,0.00016712,2]
[352120625,1738954270629,-500.0,0.00016712,2]
[352120626,1738954270638,-545.42,0.00016712,2]
[352120627,1738954270647,-500.0,0.00016712,2]
[352120628,1738954270656,-500.0,0.00016712,2]
[352120629,1738954270665,-500.0,0.00016712,2]
[352120630,1738954270674,-500.0,0.00016712,2]
[352120631,1738954270683,-500.0,0.00016712,2]
[352120632,1738954270692,-500.0,0.00016712,2]
[352120633,1738954270701,-500.0,0.00016712,2]
[352120634,1738954270710,-500.0,0.00016712,2]
[352120635,1738954270719,-500.0,0.00016712,2]
[352120636,1738954270728,-500.0,0.00016712,2]
[352120637,1738954270737,-500.0,0.00016712,2]
[352120638,1738954270746,-599.08,0.00016712,2]
[352120639,1738954270756,-500.0,0.00016712,2]
[352120640,1738954270766,-500.0,0.00016712,2]
[352120641,1738954270778,-590.92,0.00016712,2]
[352120642,1738954270787,-500.0,0.00016712,2]
[352120643,1738954270796,-1595.98,0.00016712,2]
[352120644,1738954270805,-500.0,0.00016712,2]
[352120645,1738954270815,-500.0,0.00016712,2]
[352120646,1738954270825,-575.01,0.00016712,2]
[352120647,1738954270834,-500.0,0.00016712,2]
[352120648,1738954270843,-500.0,0.00016712,2]
[352120649,1738954270853,-1915.75,0.00016712,2]
[352120650,1738954270863,-500.0,0.00016712,2]
[352120651,1738954270872,-500.0,0.00016712,2]
[352120652,1738954270881,-500.0,0.00016712,2]
[352120653,1738954270891,-500.0,0.00016712,2]
[352120654,1738954270900,-3673.7,0.00016712,2]
[352120655,1738954270909,-500.0,0.00016712,2]
[352120656,1738954270919,-1583.57,0.00016712,2]
[352120657,1738954270928,-500.0,0.00016712,2]
[352120658,1738954270939,-3349.38,0.00016712,2]
[352120659,1738954270948,-500.0,0.00016712,2]
[352120660,1738954270958,-500.0,0.00016712,2]
[352120661,1738954270967,-500.0,0.00016712,2]
[352120662,1738954270975,-500.0,0.00016712,2]
[352120663,1738954270985,-500.0,0.00016712,2]
[352120664,1738954270994,-1992.6,0.00016712,2]
[352120665,1738954271003,-500.0,0.00016712,2]
[352120666,1738954271012,-500.0,0.00016712,2]
[352120667,1738954271021,-2153.55,0.00016712,2]
[352120668,1738954271030,-500.0,0.00016712,2]
[352120669,1738954271039,-2763.47,0.00016712,2]
[352120670,1738954271048,-500.0,0.00016712,2]
[352120671,1738954271057,-1691.64,0.00016712,2]
[352120672,1738954271067,-500.0,0.00016712,2]
[352120673,1738954271077,-549.12,0.00016712,2]
[352120674,1738954271086,-500.0,0.00016712,2]
[352120675,1738954271095,-500.0,0.00016712,2]
[352120676,1738954271104,-2081.35,0.00016712,2]
[352120677,1738954271113,-500.0,0.00016712,2]
[352120678,1738954271122,-2211.8,0.00016712,2]
[352120679,1738954271131,-500.0,0.00016712,2]
[352120680,1738954271141,-4597.46,0.00016712,2]
[352120681,1738954271151,-500.0,0.00016712,2]
[352120682,1738954271161,-658.81,0.00016712,2]
[352120683,1738954271171,-500.0,0.00016712,2]
[352120684,1738954271181,-3047.56,0.00016712,2]
[352120685,1738954271191,-5795.43,0.00016712,2]
[352120686,1738954271201,-500.0,0.00016712,2]
[352120687,1738954271210,-500.0,0.00016712,2]
[352120688,1738954271219,-500.0,0.00016712,2]
[352120689,1738954271228,-546.2,0.00016712,2]
[352120690,1738954271238,-500.0,0.00016712,2]
[352120691,1738954271248,-1259.9,0.00016712,2]
[352120692,1738954271257,-500.0,0.00016712,2]
[352120693,1738954271266,-2914.76,0.00016712,2]
[352120694,1738954271275,-500.0,0.00016712,2]
[352120695,1738954271284,-500.0,0.00016712,2]
[352120696,1738954271292,-500.0,0.00016712,2]
[352120697,1738954271301,-500.0,0.00016712,2]
[352120698,1738954271310,-1600.33,0.00016712,2]
[352120699,1738954271319,-500.0,0.00016712,2]
[352120700,1738954271330,-1632.73,0.00016712,2]
[352120701,1738954271339,-1828.72,0.00016712,2]
[352120702,1738954271348,-492.76,0.00016712,2]
[352120703,1738954271358,-500.0,0.00016712,2]
[352120704,1738954271367,-863.17,0.00016712,2]
[352120705,1738954271376,-500.0,0.00016712,2]
[352120706,1738954271384,-500.0,0.00016712,2]
[352120707,1738954271393,-500.0,0.00016712,2]
[352120708,1738954271402,-500.0,0.00016712,2]
[352120709,1738954271412,-1135.96,0.00016712,2]
[352120710,1738954271421,-1878.59,0.00016712,2]
[352120711,1738954271430,-500.0,0.00016712,2]
[352120712,1738954271439,-579.55,0.00016712,2]
[352120713,1738954271448,-500.0,0.00016712,2]
[352120714,1738954271457,-2422.28,0.00016712,2]
[352120715,1738954271466,-500.0,0.00016712,2]
[352120716,1738954271474,-500.0,0.00016712,2]
[352120717,1738954271483,-503.15,0.00016712,2]
[352120718,1738954271492,-412.10765031,0.00016712,2]
[352120719,1738954271501,-325.85572489,0.00016712,2]
[352120720,1738954271510,-763.77,0.00016712,2]
[352120721,1738954271519,-1436.75,0.00016712,2]
[352120722,1738954271528,-593.64,0.00016712,2]
[352120723,1738954271537,-500.0,0.00016712,2]
[352120724,1738954271546,-3393.25,0.00016712,2]
[352120725,1738954271555,-500.0,0.00016712,2]
[352120726,1738954271564,-678.61,0.00016712,2]
[352120727,1738954271573,-500.0,0.00016712,2]
[352120728,1738954271582,-500.0,0.00016712,2]
[352120729,1738954271592,-1599.93,0.00016712,2]
[352120730,1738954271601,-500.0,0.00016712,2]
[352120731,1738954271610,-1639.45,0.00016712,2]
[352120732,1738954271619,-2020.81,0.00016712,2]
[352120733,1738954271628,-241.84533419,0.00016712,2]
[352120734,1738954271637,-500.0,0.00016712,2]
[352120735,1738954271646,-588.68,0.00016712,2]
[352120736,1738954271655,-1851.37,0.00016712,2]
[352120737,1738954271664,-500.0,0.00016712,2]
[352120738,1738954271673,-500.0,0.00016712,2]
[352120739,1738954271682,-500.0,0.00016712,2]
[352120740,1738954271692,-500.0,0.00016712,2]
[352120741,1738954271701,-939.23,0.00016712,2]
[352120742,1738954271711,-979.61,0.00016712,2]
[352120743,1738954271719,-1127.7,0.00016712,2]
[352120744,1738954271728,-1951.41,0.00016712,2]
[352120745,1738954271737,-500.0,0.00016712,2]
[352120746,1738954271747,-500.0,0.00016712,2]
[352120747,1738954271755,-500.0,0.00016712,2]
[352120748,1738954271764,-1387.19,0.00016712,2]
[352120749,1738954271778,-500.0,0.00016712,2]
[352120750,1738954271788,-500.0,0.00016712,2]
[352120751,1738954271796,-1102.72,0.00016712,2]
[352120752,1738954271806,-1403.74,0.00016712,2]
[352120753,1738954271815,-500.0,0.00016712,2]
[352120754,1738954271824,-3417.45,0.00016712,2]
[352120755,1738954271833,-500.0,0.00016712,2]
[352120756,1738954271843,-500.0,0.00016712,2]
[352120757,1738954271853,-500.0,0.00016712,2]
[352120758,1738954271863,-500.0,0.00016712,2]
[352120759,1738954271873,-500.0,0.00016712,2]
[352120760,1738954271883,-500.0,0.00016712,2]
[352120761,1738954271892,-1886.34,0.00016712,2]
[352120762,1738954271901,-500.0,0.00016712,2]
[352120763,1738954271910,-507.5316692,0.00016712,2]
[352120764,1738954271919,-500.0,0.00016712,2]
[352120765,1738954271928,-500.0,0.00016712,2]
[352120766,1738954271937,-2173.1,0.00016712,2]
[352120767,1738954271947,-500.0,0.00016712,2]
[352120768,1738954271956,-500.0,0.00016712,2]
[352120769,1738954271965,-500.0,0.00016712,2]
[352120770,1738954271974,-1588.29,0.00016712,2]
[352120771,1738954271984,-500.0,0.00016712,2]
[352120772,1738954271993,-1722.17,0.00016712,2]
[352120773,1738954272002,-1145.01,0.00016712,2]
[352120774,1738954272012,-1687.93,0.00016712,2]
[352120775,1738954272022,-500.0,0.00016712,2]
[352120776,1738954272031,-500.0,0.00016712,2]
[352120777,1738954272040,-512.91,0.00016712,2]
[352120778,1738954272050,-500.0,0.00016712,2]
[352120779,1738954272059,-988.18,0.00016712,2]
[352120780,1738954272067,-500.0,0.00016712,2]
[352120781,1738954272078,-500.0,0.00016712,2]
[352120782,1738954272087,-1012.02,0.00016712,2]
[352120783,1738954272096,-500.0,0.00016712,2]
[352120784,1738954272105,-500.0,0.00016712,2]
[352120785,1738954272114,-1105.4,0.00016712,2]
[352120786,1738954272123,-2217.33,0.00016712,2]
[352120787,1738954272132,-1396.71,0.00016712,2]
[352120788,1738954272142,-507.46,0.00016712,2]
[352120789,1738954272151,-2053.81,0.00016712,2]
[352120790,1738954272160,-500.0,0.00016712,2]
[352120791,1738954272168,-1203.81,0.00016712,2]
[352120792,1738954272177,-1136.86,0.00016712,2]
[352120793,1738954272186,-500.0,0.00016712,2]
[352120794,1738954272195,-503.67247178,0.00016712,2]
[352120795,1738954272203,-3821.91,0.00016712,2]
[352120796,1738954272212,-2539.62,0.00016712,2]
[352120797,1738954272221,-500.0,0.00016712,2]
[352120798,1738954272230,-500.0,0.00016712,2]
[352120799,1738954272239,-500.0,0.00016712,2]
[352120800,1738954272248,-4416.19,0.00016712,2]
[352120801,1738954272257,-1142.6,0.00016712,2]
[352120802,1738954272266,-2844.23,0.00016712,2]
[352120803,1738954272275,-500.0,0.00016712,2]
[352120804,1738954272284,-2134.0,0.00016712,2]
[352120805,1738954272293,-500.0,0.00016712,2]
[352120806,1738954272302,-193.64033179,0.00016712,2]
[352120807,1738954272311,-500.0,0.00016712,2]
[352120808,1738954272320,-2662.04,0.00016712,2]
[352120809,1738954272332,-500.0,0.00016712,2]
[352120810,1738954272340,-3018.12,0.00016712,2]
[352120811,1738954272350,-3136.92,0.00016712,2]
[352120812,1738954272359,-2242.65,0.00016712,2]
[352120813,1738954272368,-500.0,0.00016712,2]
[352120814,1738954272378,-746.69,0.00016712,2]
[352120815,1738954272387,-500.0,0.00016712,2]
[352120816,1738954272395,-500.0,0.00016712,2]
[352120817,1738954272404,-761.42,0.00016712,2]
[352120818,1738954272413,-500.0,0.00016712,2]
[352120819,1738954272422,-500.0,0.00016712,2]
[352120820,1738954272431,-500.0,0.00016712,2]
[352120821,1738954272440,-2871.04,0.00016712,2]
[352120822,1738954272449,-1868.54,0.00016712,2]
[352120823,1738954272458,-500.0,0.00016712,2]
[352120824,1738954272467,-254.17,0.00016712,2]
[352120825,1738954272476,-500.0,0.00016712,2]
[352120826,1738954272485,-500.0,0.00016712,2]
[352120827,1738954272494,-2115.56,0.00016712,2]
[352120828,1738954272503,-794.37,0.00016712,2]
[352120829,1738954272512,-1032.14,0.00016712,2]
[352120830,1738954272522,-500.0,0.00016712,2]
[352120831,1738954272531,-628.33,0.00016712,2]
[352120832,1738954272540,-609.26,0.00016712,2]
[352120833,1738954272548,-500.0,0.00016712,2]
[352120834,1738954272558,-2562.32,0.00016712,2]
[352120835,1738954272567,-2457.95,0.00016712,2]
[352120836,1738954272577,-2882.62,0.00016712,2]
[352120837,1738954272587,-500.0,0.00016712,2]
[352120838,1738954272596,-2324.68,0.00016712,2]
[352120839,1738954272605,-1724.56,0.00016712,2]
[352120840,1738954272614,-1592.23,0.00016712,2]
[352120841,1738954272623,-500.0,0.00016712,2]
[352120842,1738954272631,-500.0,0.00016712,2]
[352120843,1738954272640,-1999.87,0.00016712,2]
[352120844,1738954272649,-500.0,0.00016712,2]
[352120845,1738954272658,-3722.36,0.00016712,2]
[352120846,1738954272668,-500.0,0.00016712,2]
[352120847,1738954272677,-939.59,0.00016712,2]
[352120848,1738954272686,-500.0,0.00016712,2]
[352120849,1738954272695,-500.0,0.00016712,2]
[352120850,1738954272704,-500.0,0.00016712,2]
[352120851,1738954272714,-500.0,0.00016712,2]
[352120852,1738954272723,-555.09,0.00016712,2]
[352120853,1738954272732,-688.56,0.00016712,2]
[352120854,1738954272741,-500.0,0.00016712,2]
[352120855,1738954272750,-4301.29,0.00016712,2]
[352120856,1738954272761,-500.0,0.00016712,2]
[352120857,1738954272772,-500.0,0.00016712,2]
[352120858,1738954272781,-8091.03,0.00016712,2]
[352120859,1738954272791,-500.0,0.00016712,2]
[352120860,1738954272800,-500.0,0.00016712,2]
[352120861,1738954272810,-1931.31,0.00016712,2]
[352120862,1738954272819,-3008.63,0.00016712,2]
[352120863,1738954272829,-4799.9,0.00016712,2]
[352120864,1738954272839,-500.0,0.00016712,2]
[352120865,1738954272848,-714.62,0.00016712,2]
[352120866,1738954272857,-500.0,0.00016712,2]
[352120867,1738954273013,-11062.58,0.00016712,2]
[352120868,1738954273023,-3077.94,0.00016712,2]
[352120869,1738954273033,-500.0,0.00016712,2]
[352120870,1738954273042,-500.0,0.00016712,2]
[352120871,1738954273051,-500.0,0.00016712,2]
[352120872,1738954273060,-500.0,0.00016712,2]
[352120873,1738954273069,-500.0,0.00016712,2]
[352120874,1738954273080,-500.0,0.00016712,2]
[352120875,1738954273090,-1622.59,0.00016712,2]
[352120876,1738954273099,-4426.18,0.00016712,2]
[352120877,1738954273109,-4792.44,0.00016712,2]
[352120878,1738954273117,-486.44,0.00016712,2]
[352120879,1738954273126,-500.0,0.00016712,2]
[352120880,1738954273135,-4655.61,0.00016712,2]
[352120881,1738954273147,-500.0,0.00016712,2]
[352120882,1738954273157,-500.0,0.00016712,2]
[352120883,1738954273165,-500.0,0.00016712,2]
[352120884,1738954273174,-3041.6,0.00016712,2]
[352120885,1738954273183,-500.0,0.00016712,2]
[352120886,1738954273192,-500.0,0.00016712,2]
[352120887,1738954273201,-1391.31,0.00016712,2]
[352120888,1738954273211,-1807.5,0.00016712,2]
[352120889,1738954273220,-500.0,0.00016712,2]
[352120890,1738954273229,-367.16640675,0.00016712,2]
[352120891,1738954273238,-6145.27,0.00016712,2]
[352120892,1738954273247,-2021.92,0.00016712,2]
[352120893,1738954273256,-1988.48,0.00016712,2]
[352120894,1738954273266,-500.0,0.00016712,2]
[352120895,1738954273275,-2200.6,0.00016712,2]
[352120896,1738954273284,-500.0,0.00016712,2]
[352120897,1738954273293,-500.0,0.00016712,2]
[352120898,1738954273302,-1354.78,0.00016712,2]
[352120899,1738954273311,-500.0,0.00016712,2]
[352120900,1738954273320,-500.0,0.00016712,2]
[352120901,1738954273331,-500.0,0.00016712,2]
[352120902,1738954273339,-4476.64,0.00016712,2]
[352120903,1738954273348,-500.0,0.00016712,2]
[352120904,1738954273357,-5235.44,0.00016712,2]
[352120905,1738954273366,-500.0,0.00016712,2]
[352120906,1738954273376,-500.0,0.00016712,2]
[352120907,1738954273385,-500.0,0.00016712,2]
[352120908,1738954273394,-1577.01,0.00016712,2]
[352120909,1738954273403,-2494.97,0.00016712,2]
[352120910,1738954273412,-2118.69,0.00016712,2]
[352120911,1738954273421,-1243.0,0.00016712,2]
[352120912,1738954273430,-4544.73,0.00016712,2]
[352120913,1738954273439,-4210.11,0.00016712,2]
[352120914,1738954273449,-500.0,0.00016712,2]
[352120915,1738954273458,-500.0,0.00016712,2]
[352120916,1738954273467,-1038.18,0.00016712,2]
[352120917,1738954273476,-189.20743538,0.00016712,2]
[352120918,1738954273485,-2848.04,0.00016712,2]
[352120919,1738954273494,-500.0,0.00016712,2]
[352120920,1738954273503,-500.0,0.00016712,2]
[352120921,1738954273512,-500.0,0.00016712,2]
[352120922,1738954273521,-821.17,0.00016712,2]
[352120923,1738954273530,-1677.32,0.00016712,2]
[352120924,1738954273539,-500.0,0.00016712,2]
[352120925,1738954273548,-500.0,0.00016712,2]
[352120926,1738954273557,-1493.44,0.00016712,2]
[352120927,1738954273567,-500.0,0.00016712,2]
[352120928,1738954273578,-500.0,0.00016712,2]
[352120929,1738954273587,-500.0,0.00016712,2]
[352120930,1738954273596,-2790.87,0.00016712,2]
[352120931,1738954273605,-500.0,0.00016712,2]
[352120932,1738954273614,-3737.48,0.00016712,2]
[352120933,1738954273623,-3430.89,0.00016712,2]
[352120934,1738954273632,-500.0,0.00016712,2]
[352120935,1738954273642,-500.0,0.00016712,2]
[352120936,1738954273651,-500.0,0.00016712,2]
[352120937,1738954273660,-500.0,0.00016712,2]
[352120938,1738954273670,-500.0,0.00016712,2]
[352120939,1738954273679,-1079.71,0.00016712,2]
[352120940,1738954273688,-500.0,0.00016712,2]
[352120941,1738954273697,-500.0,0.00016712,2]
[352120942,1738954273706,-500.0,0.00016712,2]